{"text_format":"1","workbook":"xlsx","n_sheets":6,"sheets":["Welcome","OtherTables","MasterSheet","RTE_Matrix","Credits","Version Info"],"not_rendered":{"charts":0,"images":3,"macros":1,"external_links":0,"defined_names":0,"comments":1,"pivot_tables":0},"unopened":[],"bounds":{"document_bytes":16777216,"sheet_cells":100000,"rows_first":2000,"rows_last":500,"rows_between":2000,"halvings":0,"cell_chars":16384,"cell_head_chars":4096},"cells_cut":0,"cells_raw":0,"read":"whole","date_system":"1900"}

{"sheet":"Welcome","index":0,"n_rows":19,"n_cols":3,"rows_kept":19,"cut":false,"hidden":false,"merged":[]}
[]
[]
[null,null,"Welcome to RTE Matrix"]
[null,null,"User-Friendly, High-Quality, Cross-Comparable View of Right to Education State Rules"]
[]
[]
[]
[]
[]
[null,null,"Version 1.4"]
[]
[null,null,"CENTRE FOR CIVIL SOCIETY"]
[]
[]
[null,null,"Important"]
[null,null,"You will have to enable macros to view this document."]
[null,null,"If you do not enable macros, this document won't open."]
[null,null,"Supported Devices: PC running Windows"]
[null,null,"Macintosh computers aren't fully supported at the moment"]

{"sheet":"OtherTables","index":1,"n_rows":42,"n_cols":20,"rows_kept":42,"cut":false,"hidden":true,"merged":[[3,15,3,16],[1,1,1,2],[1,4,1,11]]}
[]
[null,"Category sub-Category Table",null,null,"Data Sources Table"]
[null,"Category","Sub-Category",null,null,"25% Reservation","Neighbourhood Criteria","School Recognition","School Management Committees","Quality of Education","Authorities","Disability",null,null,"Andhra Pradesh","Meghalaya","Learning Outcomes",null,"Meeting of the neighbourhood criteria",1]
[null,"25% Reservation","EWS Criterion",null,"Andhra Pradesh","Andhra Pradesh RTE Rules","Andhra Pradesh RTE Rules","Andhra Pradesh RTE Rules","Andhra Pradesh RTE Rules","Andhra Pradesh RTE Rules","Andhra Pradesh RTE Rules","Andhra Pradesh RTE Rules",null,null,"Arunachal Pradesh",{"$f":"HLOOKUP(P3,#REF!,MATCH(Q3,#REF!,0)+1,FALSE)","v":{"$error":"#REF!"}},null,null,"25% Reservation for children in pvt schools",2]
[null,"25% Reservation","Disadvantaged Group Criterion",null,"Arunachal Pradesh","Arunachal Pradesh RTE Rules","Arunachal Pradesh RTE Rules","Arunachal Pradesh RTE Rules","Arunachal Pradesh RTE Rules","Arunachal Pradesh RTE Rules","Arunachal Pradesh RTE Rules","Arunachal Pradesh RTE Rules",null,null,"Assam",null,null,null,"School Recognition",3]
[null,"25% Reservation","Pre-School Education",null,"Assam","Assam RTE Rules","Assam RTE Rules","Assam RTE Rules","Assam RTE Rules","Assam RTE Rules","Assam RTE Rules","Assam RTE Rules",null,null,"Bihar",null,null,null,"School Management Committees",4]
[null,"25% Reservation","Frequency of Calculation of\nPer-child Cost",null,"Bihar","Bihar RTE Rules","Bihar RTE Rules","Bihar RTE Rules","Bihar RTE Rules","Bihar RTE Rules","Bihar RTE Rules","Bihar RTE Rules",null,null,"Chhattisgarh",null,null,null,"Learning Outcomes",5]
[null,"25% Reservation","Per-child Cost per year in Rupees",null,"Chhattisgarh","Chhattisgarh RTE Rules","Chhattisgarh RTE Rules","Chhattisgarh RTE Rules","Chhattisgarh RTE Rules","Chhattisgarh RTE Rules","PIB Release: http://pib.nic.in/newsite/erelease.aspx?relid=71432","Chhattisgarh RTE Rules",null,null,"Delhi",null,null,null,"Teachers",6]
[null,"25% Reservation","Document Proof for EWS/Disadvantaged",null,"Delhi","a) Delhi School Education (Free seats for Students belongning to Economically Weaker Sections and Disadvantaged Group) Order, 2011\nb) Delhi RTE Rules","Delhi RTE Rules","Delhi RTE Rules","Delhi RTE Rules","Delhi RTE Rules","Delhi RTE Rules","Delhi RTE Rules",null,null,"Goa",null,null,null,"Continuous and Comprehensive Evaluations ",7]
[null,"25% Reservation","Payment Schedule",null,"Goa","a) Media: http://articles.timesofindia.indiatimes.com/2011-06-13/mumbai/29652497_1_rte-rules-private-schools-lakh-children\nb) Goa RTE Rules","Goa RTE Rules","Goa RTE Rules","Goa RTE Rules","Goa RTE Rules","Goa RTE Rules","Goa RTE Rules",null,null,"Gujarat",null,null,null,"Monitoring and Protection child rights",8]
[null,"25% Reservation","Payment Condition",null,"Gujarat","Gujarat RTE Rules","Gujarat RTE Rules","Gujarat RTE Rules","Gujarat RTE Rules","Gujarat RTE Rules","Gujarat RTE Rules","Gujarat RTE Rules",null,null,"Haryana"]
[null,"25% Reservation","Neighbourhood Criterion",null,"Haryana","Haryana Delhi RTE Rules","Haryana Delhi RTE Rules","Haryana Delhi RTE Rules","Haryana Delhi RTE Rules","Haryana Delhi RTE Rules","PIB Release: http://pib.nic.in/newsite/erelease.aspx?relid=71432","Haryana Delhi RTE Rules",null,null,"Himachal Pradesh"]
[null,"25% Reservation","Procedure of Admission",null,"Himachal Pradesh","Himachal Pradesh Delhi RTE Rules","Himachal Pradesh Delhi RTE Rules",{"$f":"CONCATENATE($E$13,\" \",$F$9)","v":"Himachal Pradesh a) Delhi School Education (Free seats for Students belongning to Economically Weaker Sections and Disadvantaged Group) Order, 2011\nb) Delhi RTE Rules"},{"$f":"CONCATENATE($E$13,\" \",$F$9)","v":"Himachal Pradesh a) Delhi School Education (Free seats for Students belongning to Economically Weaker Sections and Disadvantaged Group) Order, 2011\nb) Delhi RTE Rules"},{"$f":"CONCATENATE($E$13,\" \",$F$9)","v":"Himachal Pradesh a) Delhi School Education (Free seats for Students belongning to Economically Weaker Sections and Disadvantaged Group) Order, 2011\nb) Delhi RTE Rules"},{"$f":"CONCATENATE($E$13,\" \",$F$9)","v":"Himachal Pradesh a) Delhi School Education (Free seats for Students belongning to Economically Weaker Sections and Disadvantaged Group) Order, 2011\nb) Delhi RTE Rules"},{"$f":"CONCATENATE($E$13,\" \",$F$9)","v":"Himachal Pradesh a) Delhi School Education (Free seats for Students belongning to Economically Weaker Sections and Disadvantaged Group) Order, 2011\nb) Delhi RTE Rules"},null,null,"J&K"]
[null,"25% Reservation","Special Entitlements for Disabled",null,"J&K","RTE Not Applicable","RTE Not Applicable","RTE Not Applicable","RTE Not Applicable","RTE Not Applicable","PIB Release: http://pib.nic.in/newsite/erelease.aspx?relid=71432","RTE Not Applicable",null,null,"Jharkhand"]
[null,"25% Reservation","Free Entitlements",null,"Jharkhand","a) Jharkhand RTE Rules\nb) 25% Notification: http://jharkhand.gov.in/DEPTDOCUPLOAD/uploads/8/D20128041.pdf\nc) Response from RTE Helpline of Jharkhand for Residence Proof documents.","Jharkhand RTE Rules","Jharkhand RTE Rules","a) Jharkhand RTE Rules\nb) SMC Notification: http://jharkhand.gov.in/DEPTDOCUPLOAD/uploads/8/D20128041.pdf","Jharkhand RTE Rules","Jharkhand RTE Rules","Jharkhand RTE Rules",null,null,"Karnataka"]
[null,"25% Reservation","Misc",null,"Karnataka","Karnataka RTE Rules","Karnataka RTE Rules","Karnataka RTE Rules","Karnataka RTE Rules","Karnataka RTE Rules","Karnataka RTE Rules","Karnataka RTE Rules",null,null,"Kerala"]
[null,"Neighbourhood Criterion","Neighbourhood limit for Class 1-5",null,"Kerala","Kerala RTE Rules","Kerala RTE Rules","Kerala RTE Rules","Kerala RTE Rules","Kerala RTE Rules","Kerala RTE Rules","Kerala RTE Rules",null,null,"Madhya Pradesh"]
[null,"Neighbourhood Criterion","Neighbourhood limit for Class 6-8",null,"Madhya Pradesh","a) Madhya Pradesh RTE Rules\nb1) Per-child Cost 2012-13 and before: http://articles.timesofindia.indiatimes.com/2012-05-05/bhopal/31585530_1_reimbursement-private-unaided-schools-education-act\nb2) Per-child cost 2013-14: http://daily.bhaskar.com/article/MP-IND-rte-boost-mp-govt-increases-aid-to-private-schools-4226786-NOR.html","Madhya Pradesh RTE Rules","Madhya Pradesh RTE Rules","Madhya Pradesh RTE Rules","Madhya Pradesh RTE Rules","PIB Release: http://pib.nic.in/newsite/erelease.aspx?relid=71432","Madhya Pradesh RTE Rules",null,null,"Maharashtra"]
[null,"Neighbourhood Criterion","Disabled",null,"Maharashtra","a) Maharashtra Right of Children to Free and Compulsory Education (manner of reservation of seats for admission, in respect of elementary education, for the child belonging to disadvantaged group and child belonging to weaker section) Rules, 2012\nb) Media: http://articles.timesofindia.indiatimes.com/2011-06-13/mumbai/29652497_1_rte-rules-private-schools-lakh-children\nc) Maharashtra RTE Rules","Maharashtra RTE Rules","Maharashtra RTE Rules","Maharashtra RTE Rules","Maharashtra RTE Rules","Maharashtra RTE Rules","Maharashtra RTE Rules",null,null,"Manipur"]
[null,"Neighbourhood Criterion","Proof of Residence Documents",null,"Manipur","Manipur RTE Rules","Manipur RTE Rules","Manipur RTE Rules","Manipur RTE Rules","Manipur RTE Rules","Manipur RTE Rules","Manipur RTE Rules",null,null,"Meghalaya"]
[null,"Neighbourhood Criterion","Proof of Age Documents (other than a Birth Certificate)",null,"Meghalaya","Meghalaya RTE Rules","Meghalaya RTE Rules","Meghalaya RTE Rules","Meghalaya RTE Rules","Meghalaya RTE Rules","Meghalaya RTE Rules","Meghalaya RTE Rules",null,null,"Mizoram"]
[null,"Neighbourhood Criterion","Criterion under 25% Reservation",null,"Mizoram","Mizoram RTE Rules","Mizoram RTE Rules","Mizoram RTE Rules","Mizoram RTE Rules","Mizoram RTE Rules","PIB Release: http://pib.nic.in/newsite/erelease.aspx?relid=71432","Mizoram RTE Rules",null,null,"Nagaland"]
[null,"School Recognition","Recognition Criterion",null,"Nagaland","Nagaland RTE Rules","Nagaland RTE Rules","Nagaland RTE Rules","Nagaland RTE Rules","Nagaland RTE Rules","Nagaland RTE Rules","Nagaland RTE Rules",null,null,"Orissa"]
[null,"School Recognition","Misc/Other",null,"Orissa","Orissa RTE Rules","Orissa RTE Rules","Orissa RTE Rules","Orissa RTE Rules","Orissa RTE Rules","Orissa RTE Rules","Orissa RTE Rules",null,null,"Punjab"]
[null,"School Management Committees","Structure",null,"Punjab","Punjab RTE Rules","Punjab RTE Rules","Punjab RTE Rules","Punjab RTE Rules","Punjab RTE Rules","Punjab RTE Rules","Punjab RTE Rules",null,null,"Rajasthan"]
[null,"School Management Committees","Composition",null,"Rajasthan","a) Rajasthan RTE Rules\nb) http://articles.timesofindia.indiatimes.com/2012-10-29/jaipur/34797346_1_reimbursement-amount-rte-act-unaided-schools","Rajasthan RTE Rules","Rajasthan RTE Rules","Rajasthan RTE Rules","Rajasthan RTE Rules","PIB Release: http://pib.nic.in/newsite/erelease.aspx?relid=71432","Rajasthan RTE Rules",null,null,"Sikkim"]
[null,"School Management Committees","Reservation for Women",null,"Sikkim","Sikkim RTE Rules","Sikkim RTE Rules","Sikkim RTE Rules","Sikkim RTE Rules","Sikkim RTE Rules","Sikkim RTE Rules","Sikkim RTE Rules",null,null,"Tamil Nadu"]
[null,"School Management Committees","Reservation for EWS/Disadvantaged Group",null,"Tamil Nadu","a) Tamil Nadu Notification- GO (Ms) No. 174 \nb) Tamil Nadu RTE Rules\nc) Fee Reimbursement: http://www.deccanherald.com/content/301210/rte-quota-reimbursement-private-schools.html","Tamil Nadu RTE Rules","Tamil Nadu RTE Rules","Tamil Nadu RTE Rules","Tamil Nadu RTE Rules","Tamil Nadu RTE Rules","Tamil Nadu RTE Rules",null,null,"Tripura"]
[null,"School Management Committees","Reservation for\nParents/Guardian",null,"Tripura","Tripura RTE Rules","Tripura RTE Rules","Tripura RTE Rules","Tripura RTE Rules","Tripura RTE Rules","Tripura RTE Rules","Tripura RTE Rules",null,null,"Uttaranchal"]
[null,"School Management Committees","Reservation for Children",null,"Uttarakhand","a) Uttarakhand Notification under Section 12(2) of RTE Act.\nb) Uttarakhand RTE Rules","Uttarakhand RTE Rules","Uttarakhand RTE Rules","Uttarakhand RTE Rules","Uttarakhand RTE Rules","Uttarakhand RTE Rules","Uttarakhand RTE Rules",null,null,"Uttar Pradesh"]
[null,"School Management Committees","Reservation for Local Representatives",null,"Uttar Pradesh","a) Media: http://articles.timesofindia.indiatimes.com/2011-06-13/mumbai/29652497_1_rte-rules-private-schools-lakh-children\nb) Uttar Pradesh RTE Rules","Uttar Pradesh RTE Rules","Uttar Pradesh RTE Rules","Uttar Pradesh RTE Rules","Uttar Pradesh RTE Rules","Uttar Pradesh RTE Rules","Uttar Pradesh RTE Rules",null,null,"West Bengal"]
[null,"School Management Committees","Reservation for Teachers",null,"West Bengal","West Bengal RTE Rules","West Bengal RTE Rules","West Bengal RTE Rules","West Bengal RTE Rules","West Bengal RTE Rules","West Bengal RTE Rules","West Bengal RTE Rules"]
[null,"School Management Committees","Special Invitee"]
[null,"School Management Committees","Chairperson/Convener"]
[null,"School Management Committees","Special Duties"]
[null,"School Management Committees","Other/Misc"]
[null,"Quality of Education","Learning Outcomes"]
[null,"Quality of Education","Remedial Measures"]
[null,"Quality of Education","Other"]
[null,"Disability","Neighbourhood Criterion for Disabled"]
[null,"Disability","Special Entitlements"]
[null,"Disability","Teacher Training"]

{"sheet":"MasterSheet","index":2,"n_rows":31,"n_cols":43,"rows_kept":31,"cut":false,"hidden":true,"merged":[[0,40,0,42],[0,34,0,36],[0,37,0,39],[0,1,0,13],[0,20,0,21],[0,22,0,33],[0,14,0,18]]}
["Criterion/State","RTE Section 12",null,null,null,null,null,null,null,null,null,null,null,null,"Neighbourhood Criterion",null,null,null,null,null,"School Recognition",null,"School Management Committees",null,null,null,null,null,null,null,null,null,null,null,"Quality of Education",null,null,"Authorities",null,null,"Disability"]
[null,"EWS Criterion","Disadvantaged Group Criterion","Pre-School Education","Frequency of Calculation of\nPer-child Cost","Per-child Cost per year in Rupees","Document Proof for EWS/Disadvantaged","Payment Schedule","Payment Condition","Neighbourhood Criterion","Procedure of Admission","Special Entitlements for Disabled","Free Entitlements","Misc","Neighbourhood limit for Class 1-5","Neighbourhood limit for Class 6-8","Disabled","Proof of Residence Documents","Proof of Age Documents (other than a Birth Certificate)","Criterion under 25% Reservation","Recognition Criterion","Misc/Other","Structure","Composition","Reservation for Women","Reservation for EWS/Disadvantaged Group","Reservation for\nParents/Guardian","Reservation for Children","Reservation for Local Representatives","Reservation for Teachers","Special Invitee","Chairperson/Convener","Special Duties","Other/Misc","Learning Outcomes","Remedial Measures","Other","State Advisory\nCouncil","REPA","SCPCR","Neighbourhood Criterion for Disabled","Special Entitlements","Teacher Training"]
["Andhra Pradesh","Parents whose annual income \n< Rs. 60,000 who belong to:\na) Backward classes \nb) Minorities\nc) Other classes","a) SC\nb) ST\nc) Orphans\nd) Migrant and street children\ne) Children with special needs\nf) HIV affected/infected children","No mention","Every year in December","Not available","No mention","Payment through RTGS/NEFT\na) 1st Instalment: 50%\nin September\nb) 2nd Instalment: 50% in\nJanuary","a) Verification of enrolment\nby DEO\nb) Minimum attendance of students @ 80%\nevery month\nc) student\nlearning outcomes","a) Neighbourhood limit same as specified for establishment of govt schools: 1 km.\nb) In case the seats remain vacant, school may extend the limit to 3 km with permission from the DEO who shall approve the request only if all seats in the Govt School have been filled up.","No mention","No mention","a) Textbooks\nb) One Notebook per subject\nc) Other Writing Material\nd) Mid-day meals\ne) Uniforms ","Priority in admission under Section 12:\n1) Disadvantaged Groups:\na) Orphans, HIV,\nDisabled: 5%\nb) SC: 10%\nc) ST: 4%\nTota: 19%\n2) Weaker Sections: 6%","0-1 km","0-3 km","a) Appropritate and safe transportation arrangements\nb) Home-based education for severe disability","a) Ration Card\nb) Pattadar Pass Book\nc) Electricity Bill\nd) House Tax Receipt\ne) Telephone Bill","a) Hospital/ANM\nb) Anganwadi record\nc) Self-declaration\nby parent/guardian","a) Neighbourhood limit same as specified for establishment of govt schools.\nb) In case the seats remain vacant, school may extend the limit to 3 km with permission from the DEO who shall approve the request only if all seats in the neighbourhood Govt. School have been filled up.","Infrastructure requirements as per the Schedule of RTE Act. Additionally, requirements under state laws may apply; please refer state laws for more details.","Dedicated website for recognition system.","Single Committee","27 Members","No mention","One parent/guardian each from SC/ST/OBC/Muslim Minority whose children study in Class 1,2,3, and 4 and have secured the highest marks in the previous academic session.","a) 24 out of 27 members\nb) Reservation for parents/guardian of child securing highest and lowest marks in all classes.","Two children and one of them may be a girl child","a) Corporator/counselor in urban areas.\nb) One member from ward of Gram Panchayat incharge of education  ","No mention","Eminent Educationist/Philanthropist","a) Chairperson: Sarpanch in rural areas,\nCorporator in urban areas.\nb) Member-Convener: Head Teacher\n","a) Arrange to demonstrate learning outcomes in reading, writing, arithmetic and comprehension.\nb) Reduce teacher and student absenteeism\nc) Can hire teachers temporarily in case of delay in filling of vacancies.","Reservation for parents/guardian of child securing highest and lowest marks in all classes.","a) Payment  under section 12 has been conditioned on learning outcomes.\nb) SMC will do randomised testing of reading, writing, arithmetic, and comprehension","No mention","Nil","Not available","Not available","NA","a) Free transport\nb) Home-based education in case of severe disability","a) Special material \nb) Uniforms \nc) Books","All regular teachers to be trained in teaching methods for Child with Special Needs"]
["Arunachal Pradesh","Parents/guardians whose annual income is less than the minimum limit specified in BPL families by the State Govt..","No mention and not available","25% reservation shall apply to pre-primary classes wherever applicable.","No mention","Not available","No mention","No mention","No mention","a) Neighbourhood limit same as specified for establishment of govt schools.\nb) In case the seats remain vacant, school may extend the limit with prior approval from the State Govt.","No mention","Free special learning and support material","a) Textbooks\nb) Writing materials\nc) Uniforms","Nil","0-1 km","0-3 km","Appropriate and safe transport arrangements by Govt/local authority","No mention","a) Hospital/ANM\nb) Anganwadi record\nc) Self-declaration by parent/guardian",{"$f":"J4","v":"a) Neighbourhood limit same as specified for establishment of govt schools.\nb) In case the seats remain vacant, school may extend the limit with prior approval from the State Govt."},"Infrastructure requirements as per the Schedule of RTE Act. Additionally, requirements under state laws may apply; please refer state laws for more details.","Nil","Single Committee","No mention","No mention","No mention","75%","8.33% from among local educationists/children; to be decided by parents","8.33%; to be decided by local authority","8.33%; to be decided by teachers","No mention","a) Chairperson: Parent\nb) Member-Convener: Head Teacher","No mention","Nil","SCERT shall design and implement a process of school quality assessment on a regular basis.","Special Training for children identified by SMC/local authority","Nil","Not available","Not available","Not available","Appropriate and safe transport arrangements by Govt/local authority","Free special learning and support material","No mention"]
["Assam","No mention and not available","No mention and not available","No mention","No mention","Not available","No mention","a) 1st Instalment:  50% in September\nb) 2nd Instalment:  50% in January","No mention","a) Neighbourhood limit same as specified for establishment of govt schools.\nb) In case the seats remain vacant, school may extend the limit with prior approval from the State Govt or its authorised officers.","No mention","Free special learning and support material.","a) Textbooks\nb) Learning materials\nc) Uniforms","Nil","0-1 km","0-3 km","Transportation Arrangements","No mention","a) Anganwadi record\nb) Horoscope\nc) Certificate issued by villa headman (Gaon-Burha)\nd) Self-declaration\nby parent/guardian","a) Neighbourhood limit same as specified for establishment of govt schools.\nb) In case the seats remain vacant, school may extend the limit with prior approval from the State Govt or its authorised officers.","Infrastructure requirements as per the Schedule of RTE Act. Additionally, requirements under state laws may apply; please refer state laws for more details.","Nil","Single Committee","No mention","50%","3 among 9 members among Parents","9 members","No mention","One member from among Gaonburah/village headman/Community Nominee","One member from among teachers/local health workers/anganwadi workers","Two educationists/senior citizens as advisors","a) President:  Parents\nb) Member-Secretary: Head Teacher\n","a) Salaries of teaching/non-teaching staff shall be determined on the basis of strength of absentee statement approved by SMC which will monitor teacher attendance (left early/came late).\nb) Application for casual leave to be accepted by Dy. Inspector of Schools/BEO only if endorsed by SMC.","Very detailed procedures for election of members, conduct of business during meetings etc.","No mention","Special Training for children identified by SMC/local authority","Nil","Not available","Not applicable since SCPCR has been constituted.","Constituted on Mar 4, 2010 vide\nNotification No. SWD 79/93/Pt. V/136-A ","Transportation arrangements","Special learning and support material","No mention"]
["Bihar","No mention and not available","No mention and not available","No mention","No mention","Not available","No mention","No mention","No mention","a) Neighbourhood limit same as specified for establishment of govt schools.\nb) In case the seats remain vacant, school may extend the limit with prior approval from the State Govt.","Not Available","Free special learning and support material","a) Textbooks\nb) Writing materials\nc) Uniform","Nil","0-1 km","0-3 km","Appropriate and safe transport arrangements by Govt/local authority","No mention","a) Hospital/ANM\nb) Anganwadi record\nc) Self-declaration through affidavit by parent/guardian","a) Neighbourhood limit same as specified for establishment of govt schools.\nb) In case the seats remain vacant, school may extend the limit with prior approval from the State Govt.","Infrastructure requirements as per the Schedule of RTE Act. Additionally, requirements under state laws may apply; please refer state laws for more details.","Nil","Single Committee","14 members","a) 3 members among 6 from unreserved category.\nb) 1 member out of 2 reserved for Extremely Backward Class.\nc) 1 member out of 2 reserved for backward classes.","6 members;\na) SC: 1 member\nb) ST: 1 member\nc) Extremely Backward class: 2\nd) Backward classes: 2","12 members","No reservation","One member; elected member of village panchayat or ward of town body.","a) No reservation for teachers. Teachers are explicitly banned from being a member of SMC.\nb) 1 ex-officio member: Head Teacher or Headmaster.","No mention","a) Chairperson: From amongst the elected members of SMC.\nb) Member-Convener: From amongst the elected members of SMC.","No mention","a) SMC to be called Elementary School Education Committee.\nb) Very detailed procedure for election of committee members have been specified.","No mention","SMC shall identify children and organise Special Training for them.","Nil","Not available","Not applicable since SCPCR has been constituted.","Constituted on Dec 23, 2008\nvide Notification No. ज्ञापांक-10/प्र0 गृ0स्था0 -16/ 2006-2028","Appropriate and safe transport arrangements by Govt/local authority","Free special learning and support material","No mention"]
["Chhattisgarh","No mention and not available","No mention and not available","No mention","No mention","Not available","No mention","No mention","No mention","a) Neighbourhood limit same as specified for establishment of govt schools.\nb) In case the seats remain vacant, school may extend the limit with prior approval from the appropriate Govt","No mention","Free special learning and support material","a) Texbooks\nb) Writing materials\nc) Uniforms","Nil","0-1 km","0-3 km","Appropriate and safe transport arrangements by govt/local authority","No mention","a) Hospital/ANM\nb) Anganwadi record\nc) Self-declaration through affidavit by parent/guardian","a) Neighbourhood limit same as specified for establishment of govt schools.\nb) In case the seats remain vacant, school may extend the limit with prior approval from the appropriate Govt","Infrastructure requirements as per the Schedule of RTE Act. Additionally, requirements under state laws may apply; please refer state laws for more details.","Nil","Single Committee","No mention","50%","No mention","75%","8.33% from local educationists/children; to be decided by parents in the committee","8.33%; to be decided by local authority","8.33%; to be decided by teachers","No mention","a) Chairperson: Parent\nb) Member-Convener: Head Teacher","No mention","Nil","SCERT shall design and implement a process of school quality assessment on a regular basis.","Special Training for children identified by SMC/local authority based on periodical assessment of learning progress.","Nil","Not available","Not applicable since SCPCR has been constituted.","SCPCR constituted","Appropriate and safe transport arrangements by Govt/local authority","Free special learning and support material","No mention"]
["Delhi","Parents whose annual income < Rs. 1 lakh and who are residents of Delhi since the last three years.","a) SC\nb) ST\nc) OBC (non creamy)\nd) Disabled\ne) Orphan","25% reservation shall apply to all three classes- Pre-nursery, LKG, UKG","Every year in December",14280,"a) Income Certificate issued by Revenue Officer\nb) BPL Card (yellow), AAY Card (pink)","No mention","No mention","a) Neighbourhood limit same as specified for establishment of govt schools.\nb) In case the seats remain vacant, Government may extend the limit form time to time.","Draw of lots. Procedure to be videographed.","Free special learning and support material","a) Textbooks \nb) Writing materials\nc) Uniforms ","25% Reservation applicable to all three classes- Pre-nursery, LKG, UKG","0-1 km","0-3 km","Free Transportation","a) Ration Card\nb) Domicile Certificate of Child/Parent\nc) Voter ID\nd) Passport\ne) Electricity Bill\nf) Telephone Bill\ng) Water Bill","a) Hospital/ANM\nb) Anganwadi record\nc) Self-declaration by parent/guardian","a) Neighbourhood limit same as specified for establishment of govt schools.\nb) In case the seats remain vacant, Government may extend the limit form time to time.","Infrastructure requirements as per the Schedule of RTE Act. Additionally, requirements under Delhi School Education Act, 1973 and subsequent notifications shall apply.","a) Dedicated website: edudel.nic.in","Single Committee","16 Members","50%","Proportionate representation","75%","No mention","One Member","1  - Teacher; to be decided by teachers.\n1  - Head of the school","1 - Social Science Teacher\n1 - Science Teacher\n1- Maths Teacher","a) Chairperson: School Principal (ex-officio)\nb) Convener: Member Teacher\nc) Vice Chairperson: Amongst the parents","No mention","One member of SMC would be Social Worker working in the field of education","No mention","No mention","Nil","Not available","Not applicable since SCPCR has been constituted.","Constituted on Sep 8, 2008","Free transport","Free special learning and support material","No mention"]
["Goa","No mention and not available","No mention and not available","No mention","Committee for reimbursement shall meet once every six months","Rs. 5,553","No mention","a) 1st Instalment:  50% in September\nb) 2nd Instalment: 50% in January","a) 1st Instalment: Verification of enrolment\nb) 2nd Instalment: Verification of enrolment and min attendance of students @ 80% every month","a) Neighbourhood limit same as specified for establishment of govt schools.\nb) In case the seats remain vacant, school may extend the limit with prior approval from the Govt","No mention","Free special learning and support material","a) Textbooks\nb) Writing materials\nc) Uniform","Nil","I-IV: 0-1 km","V-VII: 0-3 km","Transport arrangements","No mention","a) Hospital/ANM\nb) Anganwadi record\nc) Self-declaration by parent/guardian","a) Neighbourhood limit same as specified for establishment of govt schools.\nb) In case the seats remain vacant, school may extend the limit with prior approval from the Govt","Infrastructure requirements as per the Schedule of RTE Act. Additionally, requirements under state laws may apply; please refer state laws for more details.","Nil","Single Committee","Min 12 members","No mention","No mention","75%","8.33% from local educationists/children; to be decided by parents in the committee","8.33%; to be decided by local authority","8.33%; to be decided by teachers","No mention","a) Chairperson: Parent\nb) Member-Convener: Head Teacher","No mention","Nil","Academic authority shall design and implement a process of school quality assessment on a regular basis.","Special Training for children identified by SMC/local authority based on periodical assessment of learning progress.","Nil","Not available","Not applicable since SCPCR has been constituted.","Constituted on Apr 15, 2008\nvide Notification No. 2-125- 206/DW &CD/1941","Transport arrangements","Free special learning and support material","No mention"]
["Gujarat","a) Families listed in BPL lists\nb) Families in rural areas whose annual income < Rs. 36,000.\nc) Families in urban areas whose annual income < Rs. 27,000\nd) Families whose annual income < Rs. 2,00,000","a) SC\nb) ST\nc) OBC","No mention","No mention","Not available","No mention","No mention","No mention","a) Neighbourhood limit same as specified for establishment of govt schools.\nb) In case the seats remain vacant, school may extend the limit with prior approval from the State Govt.","No mention","No mention","Free textbooks","Priority in Admission under Section 12:\na) Families listed in BPL lists\nb) Families in rural areas whose annual income < Rs. 36,000.\nc) Families in urban areas whose annual income < Rs. 27,000\nd) Families whose annual income < Rs. 2,00,000","0-1 km","0-3 km","No mention","No mention","a) Hospital/ANM\nb) Anganwadi record\nc) Self-declaration by parent/guardian","a) Neighbourhood limit same as specified for establishment of govt schools.\nb) In case the seats remain vacant, school may extend the limit with prior approval from the State Govt.","1) Infrastructure + Learning Outcomes (LO) based criteria.\nOn a scale of 100\na) Student LO (absolute): 30%\nb) Student LO (improvement over past performance): 40%\nc) Inputs: 15%\nd) Student non-academic LO: 15%\n2) Avg performance of schools to be converted into a scale with min defined grade.\n3) Existing schools to meet the min. grade to receive recognition.","Relaxation in classroom size norms.\nMin Carpet Area for Classrooms:\n1) Area (sq. ft.)= 8 x (no. of students) + 60.\nSubject to a minimum of 300 sq. ft.\n2) If Carpet Area < 300 sq. ft., the PTR shall not exceed: (Area of smallest classroom in sq. ft. - 60) / 8 )","Single Committee","12 members","50%","Proportionate representation to parents of disadvantaged groups/weaker sections","75%","8% from among local educationists/children; to be decided by parents/guardians.","8%; to be nominated by local authority","8%; to be decided by teachers","No mention","a) Chairperson: Parents/Guardians\nb) Member-Convener: Head Teacher","No mention","Nil","1) Learning Outcomes Requirement in all schools through independent third-party assessments\na) Student LO (absolute): 30%\nb) Student LO (improvement over past performance): 40%\nc) Inputs (infra): 15%\nd) Student non-academic LO: 15%.\n2) Avg performance of schools to be converted into a scale with min defined grade.\n3) Existing schools to meet the min. grade to receive recognition.","Special Training for children identified by SMC/local authority.","a) Govt to setup an independent wing to undertake quality assessments and publish a report \"School Education Quality Status\".\nb) GCERT to design/get designed evaluations to be administered every yr by teachers.\nc) Schools to be assessed by independent third party assessments every 4th year. Schools performing poorly to be assessed more often.","Not available","Not applicable since SCPCR has been constituted.","SCPCR constituted on September 28, 2012 via Notification No. JJA/10/2012/223154/CHH.","No mention","No mention","No mention"]
["Haryana","Child of a family covered under the latest BPL list of both rural and urban areas.","a) Orphan\nb) HIV affected\nc) Child of war widow","Govt and local authority shall endeavour  to provide pre-primary education to children above 3 years and before admission to Class 1.","Every year in September","Not available","No mention","Electronic transfer\na) 1st Instalment: 50% in September\nb) 2nd Instalment: 50% in February","2nd Instalment: \na) Verification of retention\nb) Minimum attendance of students @ 80% every month till January\nc) Pupil cumulative record","a) Neighbourhood limit same as specified for establishment of govt schools.\nb) In case the seats remain vacant, school may extend the limit with prior approval from the Director.","Draw of lots","Free special learning and support material","a) Texbooks\nb) Writing material\nc) Uniform","1) Unaided schools- Breakup of 25% reservation:\na) SC: 5%\nb) Backward Classes A: 4%\nc) Backward Classes B: 2.5%\n2) Aided schools: Reservation in proportion to grants received by the school in Class 1 or below to Class 8.\na) Class 1 or previous classes: 25% reservation as per the above breakup. Remaining seats to be filled up from the neighbourhood area.\nb) Class 2 and above: Reservation in proportion to grants received by school.","a) 0-1\nb) Provided at least 30 children are there in the age group of 5-6 years.","a) 0-3\nb) Provided at least 150 children are there in the primary school and 30 children in Class V.","Appropriate and safe transportation arrangements","a) Admission shall be given to children to such schools connected to a neighbourhood area or where their familites normally reside not otherwise. \nb) The Director will issue guidelines so as to confirm the residence of a family in a neighbourhood.","a) Hospital/ANM\nb) Anganwadi record\nc) Self-declaration by parent/guardian","a) Neighbourhood limit same as specified for establishment of govt schools.\nb) In case the seats remain vacant, school may extend the limit with prior approval from the Director.","a) Infrastructure requirements as per the Schedule of RTE Act. Additionally, requirements under state laws may apply; please refer state laws for more details.\nb) Appendix II of Harayana RTE Rules has a detailed list of minimum land/building standards","Nil","Single Committee","a) 1-300 Students: 12 members\nb) 301-500 students: 16 members\nc) 501+ students: 20 members","50%","a) At least one member from belonging to SC and Backward Class categories.\nb) At least one parent of child with special needs.","75%; nominated by all parents/guardians","8.33% from among local educationists/children; to be decided by parents/guardians in the SMC.","8.33%; to be decided by the local authority","8.33%; to be decided by teachers","No mention","a) Chairperson and Vice-chairperson: Parents/guardians\nb) Member-Convener: Head Teacher","No mention","Nil","a) Duty of teachers to ensure that every child attains the minimum levels of learning outcomes specified by the academic authority for each subject and assess the learning levels throughout the year.\nb) Academic authority shall design and implement a process of holistic school quality assessment on a reglar basis.","No mention","Nil","Not available","Not applicable since SCPCR has been constituted.","SCPCR constituted","Free transportation","Free special learning and support material","No mention"]
["Himachal Pradesh","Parents belonging to BPL category","a) SC\nb) ST\nc) OBC\nd) BPL family","No mention","No mention","Not available","No mention","No mention","No mention","No mention","No mention","Distance/transport allowance","a) Textbooks\nb) Writing material\nc) Uniforms","Nil","a) 0-1.5 km\nb) Min 25 children","a) 0-3 km\nb) Min 25 children","Free special learning and support material.","No mention","a) Hospital/ANM\nb) Anganwadi record\nc) Self-declaration by parent/guardian","No mention","Infrastructure requirements as per the Schedule of RTE Act. Additionally, requirements under state laws may apply; please refer state laws for more details.","Nil","Details of SMC  as specified in the Government Notification No. EDN-C-F (10)-7/2010, dated 6th March 2010","Not available","Not available","Not available","Not available","Not available","Not available","Not available","Not available","Not available","Can hire teachers temporarily in case of delay in filling of vacancies at remunerations specified by the State Govt.","Nil","Academic authority shall design and implement a process of school quality assessment on a regular basis.","Special Training for children identified by SMC/local authority based on periodical assessment of learning progress.","Nil","Not available","Not available","Not available","Distance/transport allowance at rates fixed by State Govt.","Free special learning and support material","No mention"]
["J&K","RTE Not Applicable","RTE Not Applicable","RTE Not Applicable","RTE Not Applicable","RTE Not Applicable","RTE Not Applicable","RTE Not Applicable","RTE Not Applicable","RTE Not Applicable","RTE Not Applicable","RTE Not Applicable","RTE Not Applicable","RTE Not Applicable","RTE Not Applicable","RTE Not Applicable","RTE Not Applicable","RTE Not Applicable","RTE Not Applicable","RTE Not Applicable","RTE Not Applicable","RTE Not Applicable","RTE Not Applicable","RTE Not Applicable","RTE Not Applicable","RTE Not Applicable","RTE Not Applicable","RTE Not Applicable","RTE Not Applicable","RTE Not Applicable","RTE Not Applicable","RTE Not Applicable","RTE Not Applicable","RTE Not Applicable","RTE Not Applicable","RTE Not Applicable","RTE Not Applicable","RTE Not Applicable","RTE Not Applicable","RTE Not Applicable","RTE Not Applicable","RTE Not Applicable","RTE Not Applicable"]
["Jharkhand","BPL families","a) SC/ST/Minorities among BPL families. \nb) Priority in 25% reservation to be given to SC/ST/Minorities.","No mention","No mention","Not available","a) Age Proof\nb) Residence Proof","No mention","No mention","No mention","Draw of lots","No mention","No mention","Only BPL families eligible for 25% reservation. Priority given to SC/ST/Minorities.","0-1 km","0-2 km","Appropriate arrangement by govt/local authority","a) BPL card mentioning residence address.\nb) If only BPL No. is available, an attested letter from Councillor/Sarpanch to certify that the child resides within 1 km of the school is required.","a) Hospital/ANM\nb) Anganwadi record\nc) Self-declaration by parent/guardian","No mention","Infrastructure requirements as per the Schedule of RTE Act. Additionally, requirements under state laws may apply; please refer state laws for more details.","All categories of schools have to obtain recognition. This implies that govt schools have to do it as well.","Single Committee","16 Members","50%","Proportional Represenation ","75% or 12 members","No mention","One member","One member; to be decided by teachers","No mention","a) Chairperson: From amongst the parents.\nb) Member-Convener: Head-Teacher","No mention","Nil","No mention","SMC shall identify children and organise Special Training for them.","Nil","Not available","Not applicable since SCPCR has been constituted.","SCPCR constituted","Appropriate arrangement by Govt/local authority","No mention","No mention"]
["Karnataka","Other castes and communities excluding the Disadvantaged Group where parent/guardian's annual income  < Rs. 3.5 lakh","a) SC\nb) ST\nc) Category I\nd) Category IIA\ne) Category IIB\nf) Category IIIA\ng) Category IIIB\nh) Orphan\ni) Migrant/Street children\nj) Child with special needs\nk) HIV infected/affected","25% reservation shall apply to the initial stage where pre-school education is available.","Every year before commencement of academic year.","Rs. 11,848\nRs. 5,924 (Pre-school)","Certificate of competent authority of the Revenue Department.","Electronic Fund Transfer\na) 1st Instalment: September\nb) 2nd Instalment: January","1) Receipt of compliance report in Form III from school.\n2) Form III includes questions on:\na) Attendance\nb) Performance\nc) Special Training\nd) Reasons for low attendance\ne) Reasons for detention\nf) Entitlements\ng) Reimbursements\nh) Complaints","a) Neighbourhood limit same as specified for establishment of govt schools.\nb) In case the seats remain vacant, school may extend the limit with prior approval from the State Govt.","No mention","Free special learning and support material","a) Texbooks\nb) Writing materials\nc) Uniforms","Priority:\n1) SC: 7.5%\n2) ST: 1.5%\n3) Other cateogies of children and EWS: 16%","a) 0-1 km\nb) Area of ward in urban areas with City Corporations.","a) VI-VII: 0-3 km\nb) VIII: 0-5 km\nc) Area of ward in urban areas with City Corporations.","Appropriate and safe transport arrangements by govt/local auth","No mention","a) Hospital/ANM\nb) Anganwadi record\nc) Self-declaration by parent/guardian","a) Neighbourhood limit same as specified for establishment of govt schools.\nb) In case the seats remain vacant, school may extend the limit with prior approval from the State Govt.","a) Infrastructure based only as per the Schedule of the Act.\nb) Provisions of Karnataka Education Act, 1983 shall apply muttaties muttandies.","Nil","Single Committee","16 members","50%","No mention","13 members or 75%","No mention","One member; to be decided by local authority","One member; to be decided by BEO.","No mention","No mention","SMC can hire teachers/instructors temporarily where there is a need.","Health worker and Anganwadi  worker to be ex-officio members.","No mention","Special Training for children identified by SMC/local authority based on periodical assessment of learning progress.","Nil","Not available","Not applicable since SCPCR has been constituted.","SCPCR constituted","Appropriate and safe transport arrangements by Govt/local authority","Free special learning and support material","No mention"]
["Kerala","Children of parents/guardians belonging to BPL category","Male, Female or Transgender belonging to \na) SC\nb) ST \nc) Families engaged in fishing, coir making, clay pottery, cane and bamboo work, weaving and other eligible communities defined by State Govt.\nd) Orphans\ne) HIV infected, Disabled\nf) Children above 14 years who are late enrolments","a) State Govt. to provide Early Childhood Education for ages 3-6 based on policy to be formulated.\nb) Interim arrangement of opening a new Senior Pre-primary class in all schools for ages 5-6.","Every year in September","Not available","No mention","Electronic Payment\na) 1st Instalment: September\nb) 2nd Instalment: January","1) Payment to be made only if there is no vacancy in neighbourhood govt and govt aided schools.\n2) Min attendance of students @ 80% every month and Pupil Cumulative Record","a) Neighbourhood limit same as specified for establishment of govt schools.","Draw of lots","Free transport","a) Textbooks\nb) Writing materials\nc) Uniforms\nd) Free transport and residential facility if applicable","Priority:\na) Disadvantaged Groups: 15%\nb) Weaker Sections: 10%\nWhere no govt, aided or unaided school is available in neighbourhood, children can enroll in special category schools and reimbursements shall be made to them.","0-1 km","0-3 km","a) Free transport\nb) Home-based education in case of severe disability","No mention","a) Hospital/ANM\nb) Anganwadi record\nc) Self-declaration by parent/guardian","a) Neighbourhood limit same as specified for establishment of govt schools.","Infrastructure requirements as per the Schedule of RTE Act. Additionally, requirements under state laws may apply; please refer state laws for more details.","a) Dedicated website for registration. Information would be publicly visible.\nb) New private schools have to prove essentiality before opening as identified by school mapping.","Single Committee","<750 Students - 16 members\n>750 students - 20 members","50%","Representation","75%","No mention","One, Ward-Division member","One; to be decided by teachers","Three persons to be invited by Convener","a) Chairperson: From among parent members\nb) Member-convener: Head Teacher","a) Arrange to monitor learning outcomes as prescribed by the academic authority. Monitor student and teacher absenteeism.\nb) Can hire teachers temporarily in case of delay in filling of vacancies.","a) Govt aided schools have to also have an SMC\nb) One member from among local educationists\nc) One, school leader","a) State Govt to conduct evaluation of learning outcomes in 5% of schools through external agency.\nb) SMC to also measure learning outcomes.","No mention","Nil","Not available","Not applicable since SCPCR has been constituted.","SCPCR constituted","a) Free transport\nb) Home-based education in case of severe disability","a) Special teaching/learning material\nb) Improved assistive devices\nc) Healthcare","Pre-service and in-service training having special course to impart education to the disabled"]
["Madhya Pradesh","No mention and not available","No mention and not available","25% reservation shall apply to pre-primary classes wherever available.","No mention","a) Session 2012-13 and before: Rs. 2,607\nb) Session 2013-14: Rs. 3,065","No mention","Single Instalment: End of academic session in March","No mention","a) Neighbourhood limit same as specified for establishment of govt schools.\nb) In case the seats remain vacant, school may extend the limit to neighbourhood area of the limit.","No mention","No mention","No mention","Nil","a) Rural: Village and adjoining villages.\nB) Urban: Ward and adjoining wards and villages.\n","3 km from the limit specified under Class I-V","Appropriate and safe transport arrangements by govt/local auth","No mention","a) Hospital/ANM\nb) Anganwadi record","a) Neighbourhood limit same as specified for establishment of govt schools.\nb) In case the seats remain vacant, school may extend the limit to neighbourhood area of the limit.","Infrastructure requirements as per the Schedule of RTE Act. Additionally, requirements under state laws may apply; please refer state laws for more details.","a) Dedicated website: educationportal.mp.gov.in/","Single Committee","a) Primary School: 16 members\nb) Secondary School: 18 members","No mention","One among parents/guardians of child belonging to each category: SC/ST/OBC who have secured highest marks in respective category in classes 1-4 and 5-7 for primary and middle schools respectively. ","75%,\nPrimary School: Parents/Guardian of children who have secured highest marks in classes 1-4 and 5-7 for primary and middle schools respectively .","No mention","Two members\na) Urban: One woman councillor nominated by Mayor/Chairperson .\nb) Rural: One woman panch nominated by Sarpanch. ","Head Teacher and senior most female teacher","May be invited if such services are useful for school development.","a) Chairperson: From among parents\nb) Member-Secretary: Head Teacher","No mention","Nil","SCERT to design and implement a process of holistic school quality assessment on a regular basis.","Special Training for children identified by SMC/local authority based on periodical assessment of learning progress.","Nil","Not available","Not applicable since SCPCR has been constituted.","SCPCR constituted","Appropriate and safe transport arrangements by Govt/local authority","No mention","No mention"]
["Maharashtra","a) VJNT- Vimukta Jati and Nomadic Tribes\nb) OBC\nc) Special backward classes\nd) Religious Minorities\ne) Parents with annual income < Rs. 1,00,000","a) SC\nb) ST\nc) Any other category specified by the State Govt","25% reservation applicable for pre-primary classes wherever available.","No mention","Rs. 5,329","a) Income Certificate issued by Revenue Officer not below the rank of Tehsildar.\nb) Caste Certificate issues by Revenue Officer not below the rank of Deputy Collector.","a) 1st Instalment: October 30,\nb) 2nd Instalment: April 30 or close of academic year whichever is later.","Verification of attendance by the Education Officer.","a) Neighbourhood limit same as specified for establishment of govt schools.\nb) In case the seats remain vacant, school shall extend the limit with prior approval from the Govt.","Draw of lots","Free special learning and support material.","a) Textbooks\nb) Writing materials\nc) Uniforms","a) Preference to the girl child in 25% quota\nb) Total number of seats at entry level or class I should not be less than the number of seats in any other class.\nc) Reimbursement for pre-school children admissible when children enter class 1.\nd) Aided school not to get additional grant for reimbursement under 25% quota.","a) 0-1 km b) minimum 20 children of ages 6-11 years.","a) 0-3 km \nb) Minimum 20 children.","Appropriate and safe transport arrangements by govt/local auth","a) Adhaar Card\nb) Passport\nc) Election IC\nd) Electricity Bill\ne) Telephone Bill\nf) Water Bill\ng) House Tax receipt","a) Hospital/ANM\nb) Anganwadi record\nc) Self-declaration by parent/guardian\nd) In case of Disadvantaged Group/EWS: declaration should be certified by Sarpanch in village or notified officer in semi-urban/urban area.","a) Neighbourhood limit same as specified for establishment of govt schools.\nb) In case the seats remain vacant, school shall extend the limit with prior approval from the Govt.","Infrastructure requirements as per the Schedule of RTE Act. Additionally, requirements under state laws may apply; please refer state laws for more details.","Nil","Single Committee","No mention","50%","Adequate representation","75%; to be elected by the parents/guardians.","2 members (at least one girl) with no voting rights.","From among 25% quota for local authority/members of management/teachers/educationists/child development experts. ","From among 25% quota for local auth/members of management/teachers/educationists/child development experts. ","No mention","a) Chairperson: From among parents\nb) Member-Secretary: Head Teacher","No mention","Nil","a) Academic Authority to design process of holistic school quality assessment. \nb) Implementation of assessment by BEO etc.\nc) Periodic evaluation of block, district and state level institutions at least once every five years.","Special Training for out of school children identified by local authority.","Nil","Not available","Not applicable since SCPCR has been constituted.","Constituted on Jul 24, 2007\nvide\nNotification No.\nबाहआ - २००६/ प्र.क्र. १३८/ का-३","Appropriate and safe transport arrangements by Govt/local authority","Free special learning and support material","No mention"]
["Manipur","a) Backward Classes \nb) Minorities\nc) Other classes where annual income of parents/guardians\n< Rs. 40,000","a) SC\nb) ST\nc) Orphans\nd) Children with special needs\ne) HIV affected/infected children","No mention","Every year in December","Not available","No mention","a) 1st Instalment 50% in September,\nb) 2nd Instalment 50% in January","a) 1st Intalment: Verification of Enrolment.\nB) 2nd Instalment: Verification of enrolment and min attendance of students @ 80% every month.","a) Neighbourhood limit same as specified for establishment of govt schools.\nb) In case the seats remain vacant, school may extend the limit with prior approval from the State Govt.","No mention","Free special learning and support material","Separate notification to be issued.","Nil","0-1 km","0-3 km","a) Tranport arrangements,\nb) Home-based education in case of severe disability.","No mention","a) Hospital/ANM\nb) Anganwadi record\nc) Self-declaration by parent/guardian\nd) Horoscope","a) Neighbourhood limit same as specified for establishment of govt schools.\nb) In case the seats remain vacant, school may extend the limit with prior approval from the State Govt.","Infrastructure requirements as per the Schedule of RTE Act. Additionally, requirements under state laws may apply; please refer state laws for more details.","Nil","Single Committee","No mention","50%","No mention","75%","One (8.33%) local educationist.","One member; elected member of local authority.","Head Master","No mention","a) Chairperson: Parent\nb) Member-Convener: Head Teacher","No mention","Nil","SCERT to design and implement a process of holistic school quality assessment on a regular basis.","Special training for children identified by SMC/local authority based on periodical assessment of learning progress","Nil","Not available","Not applicable since SCPCR has been constituted.","Constituted on Nov 2, 2012","a) Tranport arrangements\nb) Home-based education in case of severe disability.","Free special learning and support material","No mention"]
["Meghalaya","No mention and not available","No mention and not available","No mention","No mention","Not available","No mention","No mention","No mention","a) Neighbourhood limit same as specified for establishment of govt schools.\nb) In case the seats remain vacant, school may extend the limit with prior approval from the State Govt.","No mention","Free special learning and support material","a) Texbooks\nb) Writing materials\nc) Uniforms","Nil","0-1 km","0-3 km","Transport arrangements","No mention","a) Hospital/ANM\nb) Anganwadi record\nc) Self-declaration by parent/guardian","a) Neighbourhood limit same as specified for establishment of govt schools.\nb) In case the seats remain vacant, school may extend the limit with prior approval from the State Govt.","Infrastructure requirements as per the Schedule of RTE Act. Additionally, requirements under state laws may apply; please refer state laws for more details.","Nil","Single Committee","No mention","No mention","No mention","75%","8.33%; to be decided by parents.","8.33%; to be decided by local Authority","8.33%; to be decided by teachers","No mention","a) Chairperson: Parent\nb) Member-Convener: Head Teacher","No mention","Nil","Directorate of Educational Research and Training to design and implement a process of holistic school quality assessment.","Special training for children identified by SMC/local authority based on periodical assessment of learning progress.","Nil","Constituted on March 21, 2012","Constituted on Feb 2, 2012","SCPCR constituted","Tranport arrangements","Free special learning and support material","No mention"]
["Mizoram","Child belonging to BPL category","Child belonging to BPL category","No mention","No mention","Not available","No mention","Single Instalment: November","Verification of Enrolment","a) Neighbourhood limit same as specified for establishment of govt schools.\nb) In case the seats remain vacant, school may extend the limit with prior approval from the State Govt.","No mention","No mention","No mention","Nil","0-1 km","0-3 km","Transportation arrangements","No mention","a) Hospital/ANM\nb) Anganwadi record\nc) Self-declaration by parent/guardian\nd) Baptisma Certificate","a) Neighbourhood limit same as specified for establishment of govt schools.\nb) In case the seats remain vacant, school may extend the limit with prior approval from the State Govt.","Infrastructure requirements as per the Schedule of RTE Act. Additionally, requirements under state laws may apply; please refer state laws for more details.","Nil","Single Committee","No mention","No mention","No mention","75%","8.33% from among local educationists/children; to be decided by Parents","8.33%; to be decided by the local authority","8.33%, to be decided by teachers","No mention","a) Chairperson: Parent\nb) Member-Convener: Head Teacher","No mention","Nil","SCERT to design and implement a process of holistic school quality assessment on a regular basis.","Special training for children identified by SMC/local authority based on periodical assessment of learning progress.","Nil","Not available","Not applicable since SCPCR has been constituted.","SCPCR constituted","Transportation arrangements","No mention","No mention"]
["Nagaland","a) Parents whose annual income < Rs. 40,000","a) Educationally backward tribes prescribed by State Govt.\nb) HIV infected/affected\nc) Orphans","No mention","Every year in December","Not available","No mention","a) 1st Instalment: September\nb) 2nd Instalment: January","a) 1st Instalment: Verification of enrolment\nb) 2nd Instalment: Verification of enrolment and min attendance of students @ 80% every month","a) Neighbourhood limit same as specified for establishment of govt schools.\nb) In case the seats remain vacant, school may extend the limit with prior approval from the State Govt.","No mention","Free special learning and support material","a) Textbooks\nb) Writing materials\nc) Uniforms","Breakup of 25% reservation:\na) Weaker Sections: 6.25%\nb) Disadvantaged Group: 18.75%","No mention","No mention","Appopriate and safe transport arrangements by Govt.","No mention","a) Hospital/ANM\nb) Anganwadi record\nc) Village/Ward/Churches register record signed by head of organisation\nd) Declaration of age by parent/guardian","a) Neighbourhood limit same as specified for establishment of govt schools.\nb) In case the seats remain vacant, school may extend the limit with prior approval from the State Govt.","Infrastructure requirements as per the Schedule of RTE Act. Additionally, requirements under state laws may apply; please refer state laws for more details.","Nil","SMC to be subsumbed under Village Education Committee/Ward Education Committee/Town Education Committee/Common Education Committee as constituted under Nagaland Communisation Act, 2002.","Not applicable","Not applicable","Not applicable","Not applicable","Not applicable","Not applicable","Not applicable","Not applicable","Not applicable","SMC to be the first level of grievance redressal for teachers","Nil","No mention","Special Training for children idenfied by SMC/VEC based on periodical assessment of learning progress.","Nil","Not available","Not applicable since SCPCR has been constituted.","SCPCR constituted","Appopriate and safe transport arrangements by Govt","Free special learning and support material","No mention"]
["Orissa","No mention and not available","No mention and not available","No mention","No mention","Not available","No mention","No mention","No mention","a) Neighbourhood limit same as specified for establishment of govt schools.\nb) In case the seats remain vacant, school may extend the limit with prior approval from the Govt.","No mention","Free special learning and support material","No mention","Nil","0-1 km","0-3 km","Appropriate arrangement by Govt/local authority","No mention","a) Hospital/ANM\nb) Anganwadi record\nc) Self-declaration by parent/guardian","a) Neighbourhood limit same as specified for establishment of govt schools.\nb) In case the seats remain vacant, school may extend the limit with prior approval from the Govt.","Infrastructure requirements as per the Schedule of RTE Act. Additionally, requirements under state laws may apply; please refer state laws for more details.","Nil","Single Committee","12-16 Members","No mention","No mention","75%","8.33% for local educationists/children; to be decided by parents in the committee.","8.33%; to be decided by local authority","8.33%; to be decided by teachers","No mention","a) Chairperson: Parent\nb) Member-Convener: Head Teacher","No mention","Nil","No mention","Special Training for children identified by SMC/local authority.","Nil","Not available","Not applicable since SCPCR has been constituted.","SCPCR constituted","Appropriate arrangement by Govt/local authority","Free special learning and support material","No mention"]
["Punjab","No mention and not available","No mention and not available","25% reservation applicable for pre-primary classes wherever available.","Every year by Jun 30th","Not available","No mention","To be notified","a) Payment to be made only if there is no vacancy in neighbourhood govt. and govt. aided schools.\nb) The proportion of salaries of teachers/staff paid by the private school will be compared to that paid by the Government to their staff. The reimbursement shall be least of the two.","a) Neighbourhood limit same as specified for establishment of govt schools.\nb) In case the seats remain vacant, school may extend the limit with prior approval from the State Govt.","No mention","No mention","a) Textbooks\nb) Writing materials\nc) Uniform","Where state school is not available in neighbourhood, children can enroll in private unaided schools and reimbursements shall be made to them.","0-1 km","0-3 km","Transport arrangements","No mention","a) Hospital/Nursing Home/ANM/Village Chowkidar\nb) Anganwadi record\nc) Self-declaration by Parent-Guardian","a) Neighbourhood limit same as specified for establishment of govt schools.\nb) In case the seats remain vacant, school may extend the limit with prior approval from the State Govt.","Infrastructure requirements as per the Schedule of RTE Act. Additionally, requirements under state laws may apply; please refer state laws for more details.","Nil","1) General House\n2) Executive Committee","1) General House- one parent of each student, teachers, staff, representative of PRI\n2) Executive Committee:\na) < 100 students: 12 members\nb) 101-250 students: 24 members\nc) > 250 students: 32 members","50% of the members from among parents/guardians (75%)","No mention","75% of the members of Executive Committee","a) All students of Class 4 and above to be members of General House.\nb) 8% members of the executive committee to be from local educationists/children; to be decided by children.","8% of the Executive Committee to be decided by local authority","One; Head Teacher","No mention","a) Chairperson: from amongst non-official members\nb) Vice-chairperson: from amongst non-official members\nc) Member-secretary: Head-teacher","No mention","a) 8% reservation for teachers in Executive Committee.\nb) Head teacher to be ex-officio member.","No mention","No mention","Nil","Not available","Not applicable since SCPCR has been constituted.","Constituted on Apr 15, 2011\nvide Notification No. 5/1/2006- 1SS/916","Relaxation of neighbourhood criterion","Transport arrangements","No mention"]
["Rajasthan","\na) BPL families (both Central and State lists) prepared by the Rural / Urban Development Department of the State Government\nb) Parent whose annual income <= Rs. 2.5 lakh","a) SC\nb) ST\nc) OBC and Special Backward Classes where annual income of parents <= Rs. 2.5 lakhs\nd) A child covered under the definition of \"person with disability\" under clause (t) of section 2 of PwD Act 1995 (1 of 1996)","No mention","Every Year","Rs. 10,000","No mention","a) 1st Instalment: October\nb) 2nd Instalment: June","Verification of Enrolment","a) Geographical Limits of concerned Gram Panchayat/Nagar Palika/Nagar Parishad/Nagar Nigam.\nb) If number of applications exceeds the number of seats, preference to be give to children residing in the same village/municipal ward.","Draw of lots","Free special learning and support material","No mention","Nil","0-1 km","0-2 km","Transport arrangements","No mention","a) Hospital/ANM\nb) Anganwadi record\nc) Self-declaration by parents/guardian","a) Geographical Limits of concerned Gram Panchayat/Nagar Palika/Nagar Parishad/Nagar Nigam.\nb) If number of applications exceeds the number of seats, preference to be give to children residing in the same village/municipal ward.","As per Rajasthan Non-government Educational Institutions Act, 1989","Nil","1) Committee\n2) Executive Committee","a) Committee: All Parent/Guardians, all teachers, elected person of local auth where school is situated, other elected persons of local auth residing in same village/ward\nb) Executive Committee: 15 members","50% of Executive Committee","Appropriate representation","11 members in Executive Committee elected by SMC","One local educationist/student in Executive Committee nominated by other members.","Person elected to the ward of local body where school is situated","a) Head Master in Executive committee.\nb) One Teacher preferably a lady","No mention","a) Chairperson: Parent\nb) Member Secretary: Headmaster","Grievance redressal for children/parents.","Nil","No mention","Special Training for children identified by SMC/local authority based on periodical assessment of learning progress.","Nil","Not available","Not applicable since SCPCR has been constituted.","Constituted on Feb 23, 2010\nvide\nNotification No.\nF/DWCD /ICDS/ Uni-Cons/ 09-10/ 11919","Appropriate and safe transport arrangements by Govt/local authority","Free special learning and support material","No mention"]
["Sikkim","No mention and not available","No mention and not available","No mention","No mention","Not available","No mention","No mention","No mention","a) Neighbourhood limit same as specified for establishment of govt schools.\nb) In case the seats remain vacant, school may extend the limit with prior approval from the State Govt.","No mention","Free special learning and support material","a) Textbooks\nb) Writing materials\nc) Uniforms","Nil","0-1 km","0-3 km","Transport arrangements","No mention","a) Hospital/ANM\nb) Anganwadi record\nc) Self-declaration by parent/guardian\nd) Certificate issued by local authority","a) Neighbourhood limit same as specified for establishment of govt schools.\nb) In case the seats remain vacant, school may extend the limit with prior approval from the State Govt.","Infrastructure requirements as per the Schedule of RTE Act. Additionally, requirements under state laws may apply; please refer state laws for more details.","Nil","Single Committee","No mention","No mention","No mention","75%","8.33% for local educationists/children; to be decided by parents in the Committee.","8.33%; to be decided by local authority","8.33%; to be decided by teachers","No mention","Chairperson: Parent","SMC will be the first level of grievance redressal for teachers.","Nil","No mention","Special Training for children identified by SMC and local authority based on periodical assessment of learning progress.","Nil","Not available","Not applicable since SCPCR has been constituted.","Constituted on Ja 10, 2008\nvide\nNotification No. 49/ WCWD/ 2008","Appropriate and safe transport arrangements by Govt/local authority","Free special learning and support material","No mention"]
["Tamil Nadu","Annual income of parents/guardian \n< Rs. 2,00,000","a) SC\nb) ST\nc) Socially and educationally backward class/group\nd) Orphan\ne) HIV affected\nf) Transgender\ng) Child of a scavenger","No mention","No mention","Pre-primary: Rs. 5,924\nClass I - VIII: Rs. 11,848","No mention","a) 1st Instalment: September\nb) 2nd Instalment: March","Verification of enrolment","a) Neighbourhood limit same as specified for establishment of govt schools.\nb) In case the seats remain vacant, school may extend the limit with prior approval from the State Govt.","No mention","Free special learning and support material.","a) Textbooks\nb) Writing materials\nc) Uniforms","Nil","0-1 km","0-3 km","Appropriate and safe transport arrangements by govt/local authority","No mention","a) Hospital/ANM \nb) Anganwadi record\nc) Self-declaration by Parent/Guardian","a) Neighbourhood limit same as specified for establishment of govt schools.\nb) In case the seats remain vacant, school may extend the limit with prior approval from the State Govt.","Infrastructure requirements as per the Schedule of RTE Act. Additionally, requirements under state laws may apply; please refer state laws for more details.","Nil","Single Committee","Not less than 9 members",0.5,"Proportionate representation to parents of disadvantaged groups/weaker sections","75%","8.33% from among local educationists/children; to be decided by parents","8.33%; to be decided by local authority","8.33%; to be decided by teachers","Not more than three persons for advice on child protection, health & nutrition and child psychology","a) Chairperson: Parent\nb) Member-Convener: Head Teacher","No mention","Nil","Academic Authority shall: \na) Design and implement a process of school quality assessment on a regular basis.\nb) Undertake periodic performance appraisal of individuals and institutions.","Special Training for children identified by SMC.","Nil","Not available","Not applicable since SCPCR has been constituted.","SCPCR constituted on March 28, 2012 via G.O (MS)\nNo 45","Appropriate and safe transport arrangements by Govt/local authority","Free special learning and support material","No mention"]
["Tripura","Parents belong to BPL category","a) SC\nb) ST\nc) OBC","No mention","No mention","Not available","No mention","No mention","No mention","a) Neighbourhood limit same as specified for establishment of govt schools.\nb) No mention of relxation of limits.","No mention","No mention","No mention","Nil","0-1 km","0-3 km","Appropriate arrangement by govt/local authority","No mention","a) Hospital/ANM \nb) Anganwadi record\nc) Self-declaration by Parent/Guardian\nd) Medical examination for \"hard to reach children\" like orphans etc.","a) Neighbourhood limit same as specified for establishment of govt schools.\nb) No mention of relxation of limits.","Infrastructure requirements as per the Schedule of RTE Act. Additionally, requirements under state laws may apply; please refer state laws for more details.","Nil","Single Committee","12-24 members","No mention","Proportionate representation to parents of disadvantaged groups/weaker sections","75%","8.33%; to be decided by parents in the committee","8.33%; to be decided by local authority","8.33%; to be decided by teachers","No mention","a) Chairperson: Parent\nb) Member-Convener: Head Teacher","No mention","Nil","No mention","Special Training for children identified by SMC/local authority based on periodical assessment of learning progress.","Nil","Not available","Not available","Not available","Appropriate and safe transport arrangements by Govt/local authority","No mention","No mention"]
["Uttarakhand","Parents whose annual income \n< Rs. 55,000","a) SC\nb) ST\nc) Orphans\nd) Child depending on widow/divorcee mother whose annual income < Rs. 80,000\ne) Disabled or whose parents are diabled where annual income < Rs. 4.5 Lakh\nf) HIV affected/infected children","25% reservation applicable to the initial stage where pre-school education is available.","No mention","Rs. 16,596","No mention","Time-frame of reimbursement to be decided by State level committee headed by PS/Secy Finance","No mention","a) Neighbourhood limit same as specified for establishment of govt schools.\nb) In case the seats remain vacant, school may extend the limit with prior approval from the DEO.","DEO shall notify a calendar for admission for 25% quota","No mention","a) Textbooks\nb) Mid-day Meals\nc) Uniforms for girls\nd) Uniforms for SC/ST and BPL boys","50% of children belonging to disadvantaged group shall be girls.","a) 0-1 km\nwhere population > 200\nb) Rural:  Children \n> 25\nc) Urban:  children \n> 40 ","a) 0-3\nwhere population > 400\nb) Rural:  Children \n> 25\nc) Urban:  children \n> 40 ","No mention","No mention","a) Hospital/ANM \nb) Anganwadi record\nc) Self-declaration by Parent/Guardian\nd) Village/Gram/Parivar Register","a) Neighbourhood limit same as specified for establishment of govt schools.\nb) In case the seats remain vacant, school may extend the limit with prior approval from the DEO.","Infrastructure requirements as per the Schedule of RTE Act. Additionally, requirements under state laws may apply; please refer state laws for more details.","Nil","a) General Body\nb) Executive Council","a) General Body\nb) Executive Council: ","50% in the Executive Council","One each from SC/ST/OBC/CWSN","Executive Council\na) 0-60 children: 8 parents\nb) 61-180 children: 10 parents\nc) 180+ children: 12 parents","No mention","Executive Council:\na) Gram Pradhan, Up-pradhan of Village Panchayat and elected member of the ward in which the school is situated.\nb) Panchayat Secretary","No mention","No mention","Chairperson: From among the parents","a) Teacher Absenteeism: SMC with approval of at least 30% members shall inform the deputy BEO for necessary action against absent/irregular teachers which shall take action and report back to SMC. If SMC is not satisfied, it can appeal to DEO or SCPCR. \nb) In remote areas, SMC can make a reco to DEO not to transfer any extraordinary teacher.","Training of General body members of the SMC to be done by the Dept. of Elementary Education ","a) SCERT to monitor levels of learning through third-party evaluation.\nb) Designated authority to monitor learning levels through sample surveys and bring out block-wise annual reports on quality of education.","Special Training for both out of school (never enrolled/droupout) and weak children based on periodical assessment of learning progress","Teachers shall be held accountable for acquisition of learning levels by weaker children","Not available","Not applicable since SCPCR has been constituted.","SCPCR constituted","No mention","No mention","No mention"]
["Uttar Pradesh","a) BPL or included in the list by the Rural Development Ministry\nb) Recipients of disability/old age/widow pension\nc) Annual income < Rs. 1 lakh","a) SC\nb) ST\nc) Socially and educationally backward sections\nd) Disabled\ne) Parents affected by HIV or Cancer\nf) Shelter-less/Homeless\ng) Orphans","No mention","No mention","Rs. 5,400","No mention","No mention","Verification by Zila Shiksha Adhikari.\nIf wrong information is submitted, penalty is twice the amount of reimbursement received.","a) Neighbourhood limit same as specified for establishment of govt schools.\nb) In case the seats remain vacant, school may extend the limit with prior approval from the State Govt.","No mention","Free special learning and support material and equipments","a) Texbooks\nb) Uniforms","Priority\na) First priority to children of parents/guardians whose Annual Income is < Rs. 35,000.\nb) If seats are still vacant, children will be admitted as per the list prepared in ascending order of Annual Incomes  (where Annual Income > Rs. 35,000)","0-1 km where population is > 300","0-3 km where population > 800","Transport arrangements","No mention","a) Hospital/ANM \nb) Anganwadi record\nc) Self-declaration by Parent/Guardian\nd) Village Register of birth/death","a) Neighbourhood limit same as specified for establishment of govt schools.\nb) In case the seats remain vacant, school may extend the limit with prior approval from the State Govt.","Infrastructure requirements as per the Schedule of RTE Act. Additionally, requirements under state laws may apply; please refer state laws for more details.","Nil","No mention","15 members",0.5,"One each from SC/ST/OBC/EWS","a) 11 out of 15 members.\nb) Minimum one parent of child from each class of the school.","No mention","One member; to be decided by local authority","a) One Member from among teachers.\nb) One Member from among ANM.","1 Lekhpal; to be nominated by DM","No mention","No mention","Nil","a) Annual independent assessment conducted on a random sample for each block.\nb) Biennial Assessment by external agency. Detailed parameters provided.","Special Training for children identified by SMC/local authority based on periodical assessment of learning progress.","Nil","Not available","Not available","Not available","Transport arrangements","Free special learning and support material and equipments","No mention"]
["West Bengal","Either parent belonging to BPL","1) Proportionate representation in 25%:\na) SC: 22%\nb) ST: 6%\nc) OBC-A: 10%\nd) OBC-B: 7%\ne) Weaker sections: 55%\n2) Preference to BPL among SC/ST/OBCs if applications exceed availability of seats.\n3) 50% reservation for girls","No mention","No mention","Not available","No mention","Reimbursement Amount to be notified within three months from beginning of the academic year.","a) On the basis of recommendations of the District Inspector of Schools.\nb) As per quarterly requisition of category-wise enrolment data.","No mention","Draw of lots in presence of local representatives.\nTwo phase lottery-\na) General Lottery\nb) Second lottery for left over candidates in each category- SC/ST/OBC.","No mention","a) Study materials\nb) Uniform\n(To be reimbursed)","Nil","Class I-IV: a) Rural: 0-1 km\nb) Urban: 0-0.5 km","Class V-VIII:\na) Rural: 0-2 km\nb) Urban: 0-1 km","Home-based education as part of Special Training for severe disability.","No mention","a) Records from hospital/sub-centre.\nb) ICDS centre certificate of a registered medical practitioner.","No mention","Infrastructure requirements as per the Schedule of RTE Act. Additionally, requirements under state laws may apply; please refer state laws for more details.","Dedicated website for recognition system.","Single Committee","Min 12 members","50%","Among Parents/Guadian:\na) Class I: One SC out of total two.\nb) Class II: One ST out of total two.\nc) Class III: One OBC-A and One SC out of total three.\nd) Class IV: One OBC-B out of total three.\ne) Proportionate representation for the minorities (if any)","10 Members","No mention","One Member","One, Head Teacher","No mention","a) No mention about Chairperson\nb) Secretary: Head Teacher","No mention","Elaborate procedure outlined for holding elections","No mention","Special Training for children identified by school authority with quarterly submission of the progress report to DPO, SSA. ","Nil","Not available","Not available","Not available","Home-based education as part of Special Training for severe disability.","No mention","No mention"]

{"sheet":"RTE_Matrix","index":3,"n_rows":32,"n_cols":2,"rows_kept":32,"cut":false,"hidden":true,"merged":[]}
[]
[null,"Category"]
[null,"Sub-Category "]
[1,"Andhra Pradesh"]
[2,"Arunachal Pradesh"]
[3,"Assam"]
[4,"Bihar"]
[5,"Chhattisgarh"]
[6,"Delhi"]
[7,"Goa"]
[8,"Gujarat"]
[9,"Haryana"]
[10,"Himachal Pradesh"]
[11,"J&K"]
[12,"Jharkhand"]
[13,"Karnataka"]
[14,"Kerala"]
[15,"Madhya Pradesh"]
[16,"Maharashtra"]
[17,"Manipur"]
[18,"Meghalaya"]
[19,"Mizoram"]
[20,"Nagaland"]
[21,"Orissa"]
[22,"Punjab"]
[23,"Rajasthan"]
[24,"Sikkim"]
[25,"Tamil Nadu"]
[26,"Tripura"]
[27,"Uttarakhand"]
[28,"Uttar Pradesh"]
[29,"West Bengal"]

{"sheet":"Credits","index":4,"n_rows":17,"n_cols":3,"rows_kept":17,"cut":false,"hidden":true,"merged":[[7,1,7,5]]}
[]
[]
[]
[null,null,"CENTRE FOR CIVIL SOCIETY"]
[null,null,"Social Change Through Public Policy"]
[]
[]
[null,"Designed, Coded and Compiled By"]
[null,"Name","Abhishek Bhattacharya"]
[null,"Designation","Associate, Advocacy"]
[null,"Team","School Choice Campaign"]
[null,"Organisation","Centre for Civil Society"]
[]
[null,"Email","abhishek@ccs.in"]
[null,"Mobile","98106-59590"]
[null,"Phone","011 - 26537456 / Ext - 33"]
[null,"Office Address","A-69, Hauz Khas, New Delhi"]

{"sheet":"Version Info","index":5,"n_rows":9,"n_cols":3,"rows_kept":9,"cut":false,"hidden":true,"merged":[]}
[]
[]
[null,"Version","Update Summary"]
[null,1.4,"Consistency in language achieved"]
[null,null,"Improvement in content presentation"]
[null,null,"Updated Haryana state rules"]
[null,null,"Updated per-child cost of Madhya Pradesh"]
[null,null,"Updated neighbourhood criteria for all states"]
[null,null,"Updated SCPCR constitution status"]